[Event "Late-Titled-Tuesday-Blitz-October-03-2023"]
[Site "Chess.com"]
[Date "2023.10.03"]
[Round "1"]
[White "Nf3c5"]
[Black "luca_va99"]
[Result "1-0"]
[WhiteElo "2594"]
[BlackElo "2279"]
[TimeControl "180+1"]
[EndTime "14:07:39 PDT"]
[Termination "Nf3c5 won on time"]

1. d4 {[%clk 0:03:00.9]} 1... Nf6 {[%clk 0:02:59.1]} 2. c4 {[%clk 0:02:59.8]}
2... c5 {[%clk 0:02:59.4]} 3. d5 {[%clk 0:02:56.8]} 3... e5 {[%clk 0:02:59.9]}
4. Nc3 {[%clk 0:02:56.1]} 4... d6 {[%clk 0:03:00.3]} 5. e4 {[%clk 0:02:55.9]}
5... Be7 {[%clk 0:03:01.2]} 6. Bd3 {[%clk 0:02:49.2]} 6... Nbd7 {[%clk
0:03:00.1]} 7. h3 {[%clk 0:02:41]} 7... h5 {[%clk 0:02:59.4]} 8. Nf3 {[%clk
0:02:34.9]} 8... Nf8 {[%clk 0:02:54.8]} 9. a3 {[%clk 0:02:19.9]} 9... h4 {[%clk
0:02:53.7]} 10. b4 {[%clk 0:02:15.2]} 10... b6 {[%clk 0:02:51]} 11. Rb1 {[%clk
0:02:14.6]} 11... Ng6 {[%clk 0:02:50.5]} 12. Bc2 {[%clk 0:02:13.9]} 12... Nh5
{[%clk 0:02:40.8]} 13. Ba4+ {[%clk 0:02:11.3]} 13... Bd7 {[%clk 0:02:40.6]} 14.
bxc5 {[%clk 0:02:10.7]} 14... bxc5 {[%clk 0:02:38.4]} 15. Bxd7+ {[%clk
0:01:33.5]} 15... Qxd7 {[%clk 0:02:30.9]} 16. Qa4 {[%clk 0:01:32]} 16... Qxa4
{[%clk 0:01:41.6]} 17. Nxa4 {[%clk 0:01:32.9]} 17... Nhf4 {[%clk 0:01:37.8]} 18.
Bxf4 {[%clk 0:01:13.8]} 18... Nxf4 {[%clk 0:01:38.7]} 19. O-O {[%clk 0:01:13.9]}
19... O-O-O {[%clk 0:01:20.2]} 20. Rb5 {[%clk 0:00:52.9]} 20... Kc7 {[%clk
0:01:06.9]} 21. Ra5 {[%clk 0:00:50.2]} 21... Ra8 {[%clk 0:01:03.9]} 22. Rb1
{[%clk 0:00:39.5]} 22... Rhb8 {[%clk 0:00:59.5]} 23. Rxb8 {[%clk 0:00:36.3]}
23... Kxb8 {[%clk 0:00:58.7]} 24. Ra6 {[%clk 0:00:35.7]} 24... Kb7 {[%clk
0:00:56.1]} 25. Rc6 {[%clk 0:00:27.3]} 25... Rc8 {[%clk 0:00:51.4]} 26. Rxc8
{[%clk 0:00:26.8]} 26... Kxc8 {[%clk 0:00:52.3]} 27. Kf1 {[%clk 0:00:27.3]}
27... g6 {[%clk 0:00:38.2]} 28. Ng1 {[%clk 0:00:27.1]} 28... f5 {[%clk
0:00:37.9]} 29. Nc3 {[%clk 0:00:24.5]} 29... Bd8 {[%clk 0:00:31.3]} 30. exf5
{[%clk 0:00:23.5]} 30... gxf5 {[%clk 0:00:30.9]} 31. g3 {[%clk 0:00:24]} 31...
Ng6 {[%clk 0:00:27.7]} 32. Kg2 {[%clk 0:00:20.7]} 32... Kb7 {[%clk 0:00:21.1]}
33. Nge2 {[%clk 0:00:20.5]} 33... Ka6 {[%clk 0:00:19.2]} 34. Nb5 {[%clk
0:00:20]} 34... Be7 {[%clk 0:00:18]} 35. Nc7+ {[%clk 0:00:17.4]} 35... Kb6
{[%clk 0:00:18.3]} 36. Ne6 {[%clk 0:00:17.9]} 36... Ka5 {[%clk 0:00:12.4]} 37.
Ng7 {[%clk 0:00:17.9]} 37... f4 {[%clk 0:00:07.7]} 38. Nc3 {[%clk 0:00:17.4]}
38... fxg3 {[%clk 0:00:05.7]} 39. fxg3 {[%clk 0:00:18.1]} 39... hxg3 {[%clk
0:00:06.6]} 40. Kxg3 {[%clk 0:00:18.7]} 40... Bh4+ {[%clk 0:00:07.3]} 41. Kg4
{[%clk 0:00:19]} 41... Be1 {[%clk 0:00:07.6]} 42. Ne4 {[%clk 0:00:18.7]} 42...
Ka4 {[%clk 0:00:04.3]} 43. Nxd6 {[%clk 0:00:18.6]} 43... Kxa3 {[%clk 0:00:04.8]}
44. Ne4 {[%clk 0:00:19.2]} 44... Kb3 {[%clk 0:00:04.1]} 45. d6 {[%clk
0:00:19.5]} 45... Kxc4 {[%clk 0:00:03.4]} 46. d7 {[%clk 0:00:18.9]} 46... Bh4
{[%clk 0:00:02.8]} 47. Ng5 {[%clk 0:00:17.4]} 47... Bxg5 {[%clk 0:00:02.1]} 48.
Kxg5 {[%clk 0:00:17.7]} 48... Nf8 {[%clk 0:00:03]} 49. d8=Q {[%clk 0:00:17.5]}
1-0

[Event "Late-Titled-Tuesday-Blitz-October-03-2023"]
[Site "Chess.com"]
[Date "2023.10.03"]
[Round "1"]
[White "Slovak_fighter2000"]
[Black "artin10862"]
[Result "1-0"]
[WhiteElo "2450"]
[BlackElo "2800"]
[TimeControl "180+1"]
[EndTime "14:07:43 PDT"]
[Termination "Slovak_fighter2000 won by resignation"]

1. Nf3 {[%clk 0:03:00.1]} 1... c5 {[%clk 0:02:57.1]} 2. e4 {[%clk 0:02:59.7]}
2... d6 {[%clk 0:02:56.1]} 3. c3 {[%clk 0:02:59.2]} 3... Nf6 {[%clk 0:02:54.2]}
4. Be2 {[%clk 0:02:56.9]} 4... Bd7 {[%clk 0:02:51.5]} 5. e5 {[%clk 0:02:55.6]}
5... dxe5 {[%clk 0:02:50.9]} 6. Nxe5 {[%clk 0:02:56.5]} 6... Nc6 {[%clk
0:02:50.9]} 7. Nxd7 {[%clk 0:02:54.8]} 7... Qxd7 {[%clk 0:02:51.8]} 8. Qa4
{[%clk 0:02:51]} 8... e6 {[%clk 0:02:39]} 9. O-O {[%clk 0:02:47.5]} 9... Rc8
{[%clk 0:02:34.1]} 10. Rd1 {[%clk 0:02:38.8]} 10... Be7 {[%clk 0:02:30.5]} 11.
Bb5 {[%clk 0:02:27.2]} 11... a6 {[%clk 0:02:29.1]} 12. Bxc6 {[%clk 0:02:27.2]}
12... Rxc6 {[%clk 0:02:05.9]} 13. d4 {[%clk 0:02:25.6]} 13... b5 {[%clk
0:02:05.1]} 14. Qb3 {[%clk 0:02:20.3]} 14... cxd4 {[%clk 0:02:03.1]} 15. cxd4
{[%clk 0:02:14]} 15... Nd5 {[%clk 0:01:33.7]} 16. Bd2 {[%clk 0:02:04.8]} 16...
O-O {[%clk 0:01:32.1]} 17. Nc3 {[%clk 0:02:01.1]} 17... Rc4 {[%clk 0:01:31.1]}
18. Nxd5 {[%clk 0:01:53]} 18... Qxd5 {[%clk 0:01:30.4]} 19. Be3 {[%clk
0:01:51.9]} 19... Rfc8 {[%clk 0:01:29.3]} 20. Rac1 {[%clk 0:01:48.4]} 20... Bf6
{[%clk 0:01:27.3]} 21. Rxc4 {[%clk 0:01:45.3]} 21... Rxc4 {[%clk 0:01:25.9]} 22.
Qd3 {[%clk 0:01:40.6]} 22... h5 {[%clk 0:01:17.2]} 23. h3 {[%clk 0:01:41]} 23...
g6 {[%clk 0:01:13.5]} 24. b3 {[%clk 0:01:37.4]} 24... Rc6 {[%clk 0:01:12]} 25.
Qd2 {[%clk 0:01:33.7]} 25... Kg7 {[%clk 0:01:01.7]} 26. Bh6+ {[%clk 0:01:32.9]}
26... Kh7 {[%clk 0:01:01.1]} 27. Be3 {[%clk 0:01:33.8]} 27... Rd6 {[%clk
0:00:57.6]} 28. Kf1 {[%clk 0:01:27.5]} 28... Rc6 {[%clk 0:00:50.1]} 29. Kg1
{[%clk 0:01:20.3]} 29... Qe4 {[%clk 0:00:49.3]} 30. Qd3 {[%clk 0:01:15.6]} 30...
Qxd3 {[%clk 0:00:42.1]} 31. Rxd3 {[%clk 0:01:16.5]} 31... Rc2 {[%clk 0:00:39.1]}
32. a4 {[%clk 0:01:06.9]} 32... bxa4 {[%clk 0:00:38.4]} 33. bxa4 {[%clk
0:01:07.8]} 33... Ra2 {[%clk 0:00:38.2]} 34. d5 {[%clk 0:01:05.3]} 34... exd5
{[%clk 0:00:39.1]} 35. Rxd5 {[%clk 0:01:06.1]} 35... Rxa4 {[%clk 0:00:38.2]} 36.
Rd7 {[%clk 0:01:06]} 36... Kg7 {[%clk 0:00:37.2]} 37. g3 {[%clk 0:01:02.6]}
37... Ra1+ {[%clk 0:00:25.6]} 38. Kg2 {[%clk 0:01:03.2]} 38... a5 {[%clk
0:00:26.1]} 39. Ra7 {[%clk 0:00:55.5]} 39... a4 {[%clk 0:00:25.4]} 40. Bc5
{[%clk 0:00:54.1]} 40... Bb2 {[%clk 0:00:22.8]} 41. Rb7 {[%clk 0:00:49.6]} 41...
a3 {[%clk 0:00:21.5]} 42. Rb3 {[%clk 0:00:49.5]} 42... Kf6 {[%clk 0:00:17.5]}
43. Rxb2 {[%clk 0:00:43.8]} 43... axb2 {[%clk 0:00:17.1]} 44. Bd4+ {[%clk
0:00:44.7]} 44... Kf5 {[%clk 0:00:17.6]} 45. Bxb2 {[%clk 0:00:45.3]} 45... Ra2
{[%clk 0:00:18.2]} 46. Bd4 {[%clk 0:00:45.4]} 46... Ke4 {[%clk 0:00:17.9]} 47.
Bb6 {[%clk 0:00:45.9]} 47... g5 {[%clk 0:00:17]} 48. Bd8 {[%clk 0:00:44.3]}
48... Kf5 {[%clk 0:00:12.3]} 49. Kf3 {[%clk 0:00:42.2]} 49... Ra3+ {[%clk
0:00:12]} 50. Kg2 {[%clk 0:00:42.5]} 50... f6 {[%clk 0:00:12.5]} 51. Be7 {[%clk
0:00:42]} 51... Kg6 {[%clk 0:00:12.5]} 52. Bxa3 {[%clk 0:00:42]} 1-0

[Event "Late-Titled-Tuesday-Blitz-October-03-2023"]
[Site "Chess.com"]
[Date "2023.10.03"]
[Round "1"]
[White "AleksandrAleksikov"]
[Black "onnoelgersma"]
[Result "0-1"]
[WhiteElo "2205"]
[BlackElo "2556"]
[TimeControl "180+1"]
[EndTime "14:07:43 PDT"]
[Termination "onnoelgersma won on time"]

1. e4 {[%clk 0:02:58]} 1... g6 {[%clk 0:02:56.1]} 2. d4 {[%clk 0:02:56.3]} 2...
d6 {[%clk 0:02:56]} 3. c4 {[%clk 0:02:55]} 3... Bg7 {[%clk 0:02:55.2]} 4. Nc3
{[%clk 0:02:54.6]} 4... Nc6 {[%clk 0:02:53]} 5. Be3 {[%clk 0:02:51.5]} 5... e5
{[%clk 0:02:50.3]} 6. Nge2 {[%clk 0:02:50.8]} 6... exd4 {[%clk 0:02:49.2]} 7.
Nxd4 {[%clk 0:02:49.6]} 7... Nf6 {[%clk 0:02:49.5]} 8. Be2 {[%clk 0:02:48.3]}
8... O-O {[%clk 0:02:49]} 9. O-O {[%clk 0:02:47.4]} 9... a5 {[%clk 0:02:48.8]}
10. f3 {[%clk 0:02:41.3]} 10... Re8 {[%clk 0:02:47.4]} 11. Qd2 {[%clk
0:02:38.4]} 11... Ne5 {[%clk 0:02:37.3]} 12. Rad1 {[%clk 0:02:13.5]} 12... c6
{[%clk 0:02:26.5]} 13. Rfe1 {[%clk 0:02:10.6]} 13... Qc7 {[%clk 0:02:24.2]} 14.
b3 {[%clk 0:02:07.3]} 14... Be6 {[%clk 0:02:09.5]} 15. Nxe6 {[%clk 0:01:58.2]}
15... Rxe6 {[%clk 0:02:09.3]} 16. h3 {[%clk 0:01:47.8]} 16... Rd8 {[%clk
0:02:09]} 17. f4 {[%clk 0:01:45.9]} 17... Ned7 {[%clk 0:02:07.7]} 18. Bf3 {[%clk
0:01:45.7]} 18... h5 {[%clk 0:01:46]} 19. g3 {[%clk 0:01:35]} 19... Rde8 {[%clk
0:01:39.1]} 20. Bf2 {[%clk 0:01:30]} 20... b6 {[%clk 0:01:19.1]} 21. Kh1 {[%clk
0:01:23.7]} 21... Nc5 {[%clk 0:01:17.9]} 22. Qc2 {[%clk 0:01:13.5]} 22... Qe7
{[%clk 0:01:15.7]} 23. Re2 {[%clk 0:00:54.4]} 23... Nfxe4 {[%clk 0:01:00.4]} 24.
Nxe4 {[%clk 0:00:52.9]} 24... Nxe4 {[%clk 0:01:01.3]} 25. Bxe4 {[%clk 0:00:45]}
25... Rxe4 {[%clk 0:01:00.5]} 26. Rxe4 {[%clk 0:00:44.6]} 26... Qxe4+ {[%clk
0:01:01.4]} 27. Qxe4 {[%clk 0:00:43.4]} 27... Rxe4 {[%clk 0:01:02.3]} 28. Bxb6
{[%clk 0:00:39.3]} 28... a4 {[%clk 0:01:02.1]} 29. bxa4 {[%clk 0:00:31.5]} 29...
Rxc4 {[%clk 0:01:01.9]} 30. a5 {[%clk 0:00:31.4]} 30... d5 {[%clk 0:00:43.8]}
31. a6 {[%clk 0:00:29.9]} 31... Ra4 {[%clk 0:00:44]} 32. a7 {[%clk 0:00:29.7]}
32... Bf8 {[%clk 0:00:41.5]} 33. Rc1 {[%clk 0:00:25.9]} 33... c5 {[%clk
0:00:40.9]} 34. Bxc5 {[%clk 0:00:24.6]} 34... Bxc5 {[%clk 0:00:41]} 35. Rxc5
{[%clk 0:00:24.1]} 35... Rxa7 {[%clk 0:00:41.4]} 36. Rxd5 {[%clk 0:00:23.1]}
36... Rxa2 {[%clk 0:00:41.7]} 37. Rd3 {[%clk 0:00:19.9]} 37... Kg7 {[%clk
0:00:41.9]} 38. Kg1 {[%clk 0:00:17.6]} 38... Ra4 {[%clk 0:00:42.2]} 39. Kf2
{[%clk 0:00:15.4]} 39... h4 {[%clk 0:00:42.5]} 40. Kf3 {[%clk 0:00:15.2]} 40...
hxg3 {[%clk 0:00:42.8]} 41. Kxg3 {[%clk 0:00:14.7]} 41... Kf6 {[%clk 0:00:43.3]}
42. Kf3 {[%clk 0:00:14.4]} 42... Ra1 {[%clk 0:00:42.7]} 43. Rb3 {[%clk
0:00:13.9]} 43... Rh1 {[%clk 0:00:42.4]} 44. Kg3 {[%clk 0:00:13.4]} 44... Rc1
{[%clk 0:00:41.6]} 45. Kf3 {[%clk 0:00:13.1]} 45... Kg7 {[%clk 0:00:42.1]} 46.
Kg3 {[%clk 0:00:13.1]} 46... Kh6 {[%clk 0:00:42.5]} 47. Kg4 {[%clk 0:00:12.4]}
47... Rd1 {[%clk 0:00:39]} 48. Rb5 {[%clk 0:00:08.6]} 48... Rd3 {[%clk
0:00:38.5]} 49. f5 {[%clk 0:00:08.1]} 49... Rd4+ {[%clk 0:00:37]} 50. Kg3 {[%clk
0:00:06.8]} 50... g5 {[%clk 0:00:37.4]} 51. Rb7 {[%clk 0:00:05.4]} 51... Kg7
{[%clk 0:00:37.1]} 52. Rb6 {[%clk 0:00:04.8]} 52... Rf4 {[%clk 0:00:36.8]} 53.
Rb5 {[%clk 0:00:02.7]} 53... Kf6 {[%clk 0:00:36.3]} 0-1

[Event "Late-Titled-Tuesday-Blitz-October-03-2023"]
[Site "Chess.com"]
[Date "2023.10.03"]
[Round "1"]
[White "dorpato"]
[Black "zverr1"]
[Result "0-1"]
[WhiteElo "2039"]
[BlackElo "2526"]
[TimeControl "180+1"]
[EndTime "14:07:51 PDT"]
[Termination "zverr1 won on time"]

1. e4 {[%clk 0:02:48]} 1... c5 {[%clk 0:02:59.6]} 2. Nc3 {[%clk 0:02:46.8]} 2...
g6 {[%clk 0:02:59.4]} 3. g3 {[%clk 0:02:44.9]} 3... Bg7 {[%clk 0:02:59.4]} 4.
Bg2 {[%clk 0:02:44.6]} 4... Nc6 {[%clk 0:03:00.1]} 5. d3 {[%clk 0:02:43.8]} 5...
e6 {[%clk 0:02:57.1]} 6. Be3 {[%clk 0:02:41.7]} 6... d6 {[%clk 0:02:57.7]} 7.
Qd2 {[%clk 0:02:38]} 7... Rb8 {[%clk 0:02:58]} 8. h3 {[%clk 0:02:34.3]} 8... b5
{[%clk 0:02:55.9]} 9. Rb1 {[%clk 0:02:33.6]} 9... a5 {[%clk 0:02:54.6]} 10. Nf3
{[%clk 0:02:23.3]} 10... b4 {[%clk 0:02:49.8]} 11. Ne2 {[%clk 0:02:16.9]} 11...
Ba6 {[%clk 0:02:42]} 12. O-O {[%clk 0:02:08.7]} 12... Nge7 {[%clk 0:02:41.7]}
13. Nh2 {[%clk 0:01:48.5]} 13... O-O {[%clk 0:02:40.2]} 14. Bh6 {[%clk
0:01:28.9]} 14... Nd4 {[%clk 0:02:00.8]} 15. Bxg7 {[%clk 0:01:12.5]} 15... Kxg7
{[%clk 0:02:01.7]} 16. f4 {[%clk 0:01:12.2]} 16... f5 {[%clk 0:01:52.8]} 17. Nf3
{[%clk 0:00:48.6]} 17... Nxf3+ {[%clk 0:01:44.3]} 18. Bxf3 {[%clk 0:00:42.1]}
18... Bb7 {[%clk 0:01:36.4]} 19. Bg2 {[%clk 0:00:26.2]} 19... Qd7 {[%clk
0:01:29.2]} 20. g4 {[%clk 0:00:20.1]} 20... Kg8 {[%clk 0:01:03.9]} 21. Ng3
{[%clk 0:00:18.6]} 21... Rbc8 {[%clk 0:00:31.4]} 22. Qe2 {[%clk 0:00:18.1]}
22... Nc6 {[%clk 0:00:27.5]} 23. Rbe1 {[%clk 0:00:14.1]} 23... Nd4 {[%clk
0:00:27.1]} 24. Qf2 {[%clk 0:00:13.6]} 24... Rce8 {[%clk 0:00:27.3]} 25. c3
{[%clk 0:00:13.6]} 25... bxc3 {[%clk 0:00:26.6]} 26. bxc3 {[%clk 0:00:14.5]}
26... Nb5 {[%clk 0:00:27.3]} 27. Qd2 {[%clk 0:00:13.7]} 27... Qg7 {[%clk
0:00:22.6]} 28. Rc1 {[%clk 0:00:12.6]} 28... Bc6 {[%clk 0:00:19.2]} 29. a4
{[%clk 0:00:12]} 29... Nc7 {[%clk 0:00:17.2]} 30. Ra1 {[%clk 0:00:11.2]} 30...
Rb8 {[%clk 0:00:16.1]} 31. d4 {[%clk 0:00:10.3]} 31... cxd4 {[%clk 0:00:15]} 32.
cxd4 {[%clk 0:00:10.5]} 32... Rb4 {[%clk 0:00:14.6]} 33. e5 {[%clk 0:00:09.7]}
33... Bxg2 {[%clk 0:00:14.1]} 34. Kxg2 {[%clk 0:00:09.1]} 34... Nd5 {[%clk
0:00:12.6]} 35. exd6 {[%clk 0:00:08.6]} 35... Rxd4 {[%clk 0:00:09]} 36. Qe2
{[%clk 0:00:06.8]} 36... Nxf4+ {[%clk 0:00:03.8]} 37. Rxf4 {[%clk 0:00:06.4]}
37... Rxf4 {[%clk 0:00:04.7]} 38. Qxe6+ {[%clk 0:00:06.6]} 38... Kh8 {[%clk
0:00:05.4]} 39. Qe3 {[%clk 0:00:06.5]} 39... fxg4 {[%clk 0:00:03.9]} 40. Re1
{[%clk 0:00:05.4]} 40... gxh3+ {[%clk 0:00:03.4]} 41. Kxh3 {[%clk 0:00:05.1]}
41... Rf3 {[%clk 0:00:03.3]} 42. Qe5 {[%clk 0:00:04.4]} 42... Qxe5 {[%clk
0:00:02.3]} 43. Rxe5 {[%clk 0:00:04.6]} 43... Rd3 {[%clk 0:00:02.7]} 44. Re6
{[%clk 0:00:04]} 44... Rd8 {[%clk 0:00:02.7]} 45. Kg4 {[%clk 0:00:03.8]} 45...
R3xd6 {[%clk 0:00:03.3]} 46. Re5 {[%clk 0:00:03.2]} 46... Rd5 {[%clk 0:00:03.8]}
47. Re6 {[%clk 0:00:03.5]} 47... Rd4+ {[%clk 0:00:04.4]} 48. Kg5 {[%clk
0:00:03]} 48... Rxa4 {[%clk 0:00:05.3]} 0-1

[Event "Late-Titled-Tuesday-Blitz-October-03-2023"]
[Site "Chess.com"]
[Date "2023.10.03"]
[Round "1"]
[White "carokannlover213"]
[Black "GiorgianBarbosa"]
[Result "1-0"]
[WhiteElo "2728"]
[BlackElo "2406"]
[TimeControl "180+1"]
[EndTime "14:07:57 PDT"]
[Termination "carokannlover213 won by checkmate"]

1. e4 {[%clk 0:03:00.9]} 1... c5 {[%clk 0:03:00]} 2. Nf3 {[%clk 0:03:00.1]} 2...
g6 {[%clk 0:03:00.9]} 3. c3 {[%clk 0:02:57.7]} 3... Bg7 {[%clk 0:03:00.7]} 4. d4
{[%clk 0:02:57.6]} 4... cxd4 {[%clk 0:03:01.6]} 5. cxd4 {[%clk 0:02:58.4]} 5...
d5 {[%clk 0:03:02]} 6. e5 {[%clk 0:02:59]} 6... Bg4 {[%clk 0:03:02.1]} 7. Bb5+
{[%clk 0:02:58.9]} 7... Nc6 {[%clk 0:03:02]} 8. Bxc6+ {[%clk 0:02:59.6]} 8...
bxc6 {[%clk 0:03:02.9]} 9. Nbd2 {[%clk 0:03:00]} 9... e6 {[%clk 0:03:03.4]} 10.
h3 {[%clk 0:03:00.3]} 10... Bxf3 {[%clk 0:03:03.3]} 11. Nxf3 {[%clk 0:03:01.2]}
11... Ne7 {[%clk 0:03:03.8]} 12. O-O {[%clk 0:03:01.8]} 12... O-O {[%clk
0:03:04]} 13. b3 {[%clk 0:03:02.4]} 13... Nf5 {[%clk 0:02:54.4]} 14. Ba3 {[%clk
0:02:59.6]} 14... Re8 {[%clk 0:02:54]} 15. Qd2 {[%clk 0:02:47.7]} 15... a5
{[%clk 0:02:51.1]} 16. Bc5 {[%clk 0:02:33.2]} 16... a4 {[%clk 0:02:50]} 17. Qc3
{[%clk 0:02:16.7]} 17... Nh4 {[%clk 0:02:42.3]} 18. Rfc1 {[%clk 0:01:56.5]}
18... Bh6 {[%clk 0:02:30.9]} 19. Rc2 {[%clk 0:01:43]} 19... axb3 {[%clk
0:02:30.5]} 20. Qxb3 {[%clk 0:01:43]} 20... Nxf3+ {[%clk 0:02:07]} 21. Qxf3
{[%clk 0:01:43.9]} 21... Ra6 {[%clk 0:02:01.7]} 22. Rb2 {[%clk 0:01:31.5]} 22...
Qg5 {[%clk 0:01:55.1]} 23. g4 {[%clk 0:01:02]} 23... Qf4 {[%clk 0:01:28.5]} 24.
Qxf4 {[%clk 0:00:53.3]} 24... Bxf4 {[%clk 0:01:29.4]} 25. a4 {[%clk 0:00:48.6]}
25... Rea8 {[%clk 0:01:17.8]} 26. a5 {[%clk 0:00:49]} 26... Kg7 {[%clk
0:01:12.6]} 27. Bb6 {[%clk 0:00:24.3]} 27... h5 {[%clk 0:00:57.8]} 28. gxh5
{[%clk 0:00:12]} 28... gxh5 {[%clk 0:00:56.9]} 29. Rab1 {[%clk 0:00:11.2]} 29...
Kg6 {[%clk 0:00:50.8]} 30. Rc2 {[%clk 0:00:11.6]} 30... Kf5 {[%clk 0:00:36.2]}
31. Rxc6 {[%clk 0:00:09.4]} 31... Bd2 {[%clk 0:00:36.4]} 32. Rc7 {[%clk
0:00:07.2]} 32... Kg6 {[%clk 0:00:20.6]} 33. Kh1 {[%clk 0:00:06.4]} 33... Bxa5
{[%clk 0:00:15.1]} 34. Rg1+ {[%clk 0:00:06.2]} 34... Kf5 {[%clk 0:00:15.6]} 35.
Rxf7+ {[%clk 0:00:06.2]} 35... Ke4 {[%clk 0:00:16.5]} 36. Bc5 {[%clk 0:00:06.6]}
36... Bd2 {[%clk 0:00:14.6]} 37. Rg3 {[%clk 0:00:03.3]} 37... Ra1+ {[%clk
0:00:11.3]} 38. Kg2 {[%clk 0:00:03.5]} 38... R8a2 {[%clk 0:00:07.5]} 39. Rgf3
{[%clk 0:00:02.1]} 39... h4 {[%clk 0:00:06.3]} 40. Rg7 {[%clk 0:00:02]} 40...
Bf4 {[%clk 0:00:04.5]} 41. Rg4 {[%clk 0:00:01.7]} 41... Rxf2+ {[%clk 0:00:02.8]}
42. Rxf2 {[%clk 0:00:01.3]} 42... Rg1+ {[%clk 0:00:03.7]} 43. Kxg1 {[%clk
0:00:01.5]} 43... Ke3 {[%clk 0:00:02.8]} 44. Rfxf4 {[%clk 0:00:02.4]} 44... Ke2
{[%clk 0:00:02.9]} 45. Kg2 {[%clk 0:00:03.3]} 45... Ke3 {[%clk 0:00:03.2]} 46.
Rf3+ {[%clk 0:00:03.6]} 46... Ke2 {[%clk 0:00:04.1]} 47. Rgf4 {[%clk 0:00:03.9]}
47... Ke1 {[%clk 0:00:05]} 48. Rf2 {[%clk 0:00:04.5]} 48... Kd1 {[%clk
0:00:05.1]} 49. R4f3 {[%clk 0:00:05.4]} 49... Ke1 {[%clk 0:00:06]} 50. Re3+
{[%clk 0:00:05.9]} 50... Kd1 {[%clk 0:00:06.9]} 51. Kf3 {[%clk 0:00:06.3]} 51...
Kc1 {[%clk 0:00:06.4]} 52. Re1# {[%clk 0:00:07.2]} 1-0

[Event "Late-Titled-Tuesday-Blitz-October-03-2023"]
[Site "Chess.com"]
[Date "2023.10.03"]
[Round "1"]
[White "BillieKimbah"]
[Black "arminmusovic"]
[Result "1/2-1/2"]
[WhiteElo "2962"]
[BlackElo "2501"]
[TimeControl "180+1"]
[EndTime "14:07:58 PDT"]
[Termination "Game drawn - insufficient material"]

1. d4 {[%clk 0:02:58.1]} 1... d5 {[%clk 0:02:59.8]} 2. Nf3 {[%clk 0:02:57.8]}
2... c5 {[%clk 0:03:00.7]} 3. c4 {[%clk 0:02:57.1]} 3... Nf6 {[%clk 0:02:59.9]}
4. cxd5 {[%clk 0:02:55.9]} 4... cxd4 {[%clk 0:03:00.2]} 5. Qxd4 {[%clk
0:02:54.5]} 5... Qxd5 {[%clk 0:03:00.3]} 6. Nc3 {[%clk 0:02:54.6]} 6... Qxd4
{[%clk 0:03:00.7]} 7. Nxd4 {[%clk 0:02:55.5]} 7... a6 {[%clk 0:03:01.4]} 8. Bf4
{[%clk 0:02:47.8]} 8... Nbd7 {[%clk 0:03:00.5]} 9. Nf3 {[%clk 0:02:28.3]} 9...
b5 {[%clk 0:02:58.9]} 10. g3 {[%clk 0:02:25.1]} 10... Bb7 {[%clk 0:02:53.3]} 11.
Bg2 {[%clk 0:02:25.4]} 11... e6 {[%clk 0:02:51.9]} 12. Rc1 {[%clk 0:02:24.3]}
12... Bb4 {[%clk 0:02:48.8]} 13. O-O {[%clk 0:02:23.9]} 13... O-O {[%clk
0:02:47]} 14. Rfd1 {[%clk 0:02:22.2]} 14... Rfc8 {[%clk 0:02:46.1]} 15. Bd2
{[%clk 0:02:20.2]} 15... h6 {[%clk 0:02:43.9]} 16. Ne1 {[%clk 0:02:20]} 16...
Bxg2 {[%clk 0:02:43.2]} 17. Kxg2 {[%clk 0:02:20.9]} 17... Nc5 {[%clk 0:02:38.7]}
18. Be3 {[%clk 0:02:15.5]} 18... Bxc3 {[%clk 0:02:35.2]} 19. Rxc3 {[%clk
0:02:16.4]} 19... Na4 {[%clk 0:02:29]} 20. Rxc8+ {[%clk 0:02:11.1]} 20... Rxc8
{[%clk 0:02:28.9]} 21. Nd3 {[%clk 0:02:11.7]} 21... Nd5 {[%clk 0:02:20.9]} 22.
Bd4 {[%clk 0:02:09.9]} 22... Rc2 {[%clk 0:02:14.7]} 23. e4 {[%clk 0:02:08.1]}
23... Nf6 {[%clk 0:02:14.6]} 24. Kf3 {[%clk 0:01:51.8]} 24... a5 {[%clk
0:01:55.6]} 25. Rc1 {[%clk 0:01:45.4]} 25... Rxc1 {[%clk 0:01:53.1]} 26. Nxc1
{[%clk 0:01:46.3]} 26... Nd7 {[%clk 0:01:43.1]} 27. e5 {[%clk 0:01:33.9]} 27...
Nac5 {[%clk 0:01:31.3]} 28. Ke3 {[%clk 0:01:34.3]} 28... f6 {[%clk 0:01:30.4]}
29. exf6 {[%clk 0:01:33.4]} 29... gxf6 {[%clk 0:01:31.3]} 30. Bxc5 {[%clk
0:01:26.1]} 30... Nxc5 {[%clk 0:01:32.2]} 31. Kd4 {[%clk 0:01:25]} 31... Nb7
{[%clk 0:01:22.7]} 32. Nd3 {[%clk 0:01:21.5]} 32... Kf7 {[%clk 0:01:22.1]} 33.
Nc5 {[%clk 0:01:19]} 33... Nd8 {[%clk 0:01:17.7]} 34. Nd3 {[%clk 0:01:10.9]}
34... Nb7 {[%clk 0:01:17.7]} 35. g4 {[%clk 0:01:11]} 35... Ke7 {[%clk
0:01:14.7]} 36. f4 {[%clk 0:01:11.1]} 36... Kd6 {[%clk 0:01:14.5]} 37. h4 {[%clk
0:01:11.3]} 37... Nd8 {[%clk 0:01:09.7]} 38. a3 {[%clk 0:00:59.9]} 38... Nf7
{[%clk 0:00:59.5]} 39. Nf2 {[%clk 0:00:52.5]} 39... e5+ {[%clk 0:00:56.8]} 40.
Ke4 {[%clk 0:00:52.6]} 40... Ke6 {[%clk 0:00:44.8]} 41. f5+ {[%clk 0:00:51.4]}
41... Kd6 {[%clk 0:00:45.4]} 42. Nh3 {[%clk 0:00:48.1]} 42... Kc6 {[%clk
0:00:45.5]} 43. Nf2 {[%clk 0:00:40.6]} 43... Nd6+ {[%clk 0:00:41.3]} 44. Ke3
{[%clk 0:00:41]} 44... h5 {[%clk 0:00:37.6]} 45. gxh5 {[%clk 0:00:40.4]} 45...
Nxf5+ {[%clk 0:00:37.2]} 46. Kf3 {[%clk 0:00:40.5]} 46... Kd5 {[%clk 0:00:30.4]}
47. Ne4 {[%clk 0:00:39.9]} 47... Nxh4+ {[%clk 0:00:24.4]} 48. Ke3 {[%clk
0:00:39]} 48... Nf5+ {[%clk 0:00:23.2]} 49. Kd3 {[%clk 0:00:39.1]} 49... Ke6
{[%clk 0:00:21.2]} 50. b4 {[%clk 0:00:34.5]} 50... axb4 {[%clk 0:00:20.4]} 51.
axb4 {[%clk 0:00:35.4]} 51... Nh6 {[%clk 0:00:19.9]} 52. Nc3 {[%clk 0:00:34.4]}
52... f5 {[%clk 0:00:19.8]} 53. Nxb5 {[%clk 0:00:34.8]} 53... Nf7 {[%clk
0:00:18.9]} 54. Nc3 {[%clk 0:00:26.1]} 54... Nd6 {[%clk 0:00:19.1]} 55. Ke3
{[%clk 0:00:24.6]} 55... f4+ {[%clk 0:00:18]} 56. Kf3 {[%clk 0:00:24.7]} 56...
Kf5 {[%clk 0:00:18.6]} 57. b5 {[%clk 0:00:17.8]} 57... Nxb5 {[%clk 0:00:14.9]}
58. Nxb5 {[%clk 0:00:17.8]} 58... e4+ {[%clk 0:00:15.6]} 59. Kf2 {[%clk
0:00:18]} 59... Kg5 {[%clk 0:00:16.3]} 60. Nd6 {[%clk 0:00:18.2]} 60... Kxh5
{[%clk 0:00:14.8]} 61. Nxe4 {[%clk 0:00:18.3]} 61... Kg4 {[%clk 0:00:15.3]} 62.
Nf6+ {[%clk 0:00:18.3]} 62... Kf5 {[%clk 0:00:15.7]} 63. Kf3 {[%clk 0:00:19.2]}
63... Kxf6 {[%clk 0:00:15.6]} 64. Kxf4 {[%clk 0:00:20.1]} 1/2-1/2